{"text_format":"1","workbook":"xlsx","n_sheets":2,"sheets":["Quiz","Feuil2"],"not_rendered":{"charts":0,"images":119,"macros":1,"external_links":0,"defined_names":3,"comments":0,"pivot_tables":0},"unopened":[],"bounds":{"document_bytes":16777216,"sheet_cells":100000,"rows_first":2000,"rows_last":500,"rows_between":2000,"halvings":0,"cell_chars":16384,"cell_head_chars":4096},"cells_cut":0,"cells_raw":0,"read":"whole","date_system":"1900"}

{"sheet":"Quiz","index":0,"n_rows":93,"n_cols":28,"rows_kept":93,"cut":false,"hidden":false,"merged":[[11,4,13,4],[3,3,4,3],[0,2,1,2],[3,2,4,2],[0,4,1,4]]}
[" ",null,"Mode diapo ->",{"$f":"I4","v":55},null,null,null,null,null,null,null,null,null,null,null,null,null,null,null,null,null,null,null,null,null,1,1,1]
[null,null,null,{"$f":"I18","v":100},null,{"$f":"IF(K8=\"oui\",\"2 choix !\",\"\")","v":""}]
[]
[null,null,{"$f":"IF(AND(K6=0,K5=0),\"\",IF(I8=\"oui\",\"P\",\"O\"))","v":""},"Répondre en cliquant dans le cadre lavande du menu déroulant ci-dessus (ou dans le menu \"ABCD\"), puis sur le nom de la fleur. Pour descendre ou monter dans la liste, utiliser l'ascenseur de droite ou les flèches haut bas du clavier. La gomme annule votre choix et libère le tirage. Les flèches du haut font défiler les fleurs en mode 'diapo' sans attendre une réponse.",{"$f":"IF(OR(I23=2,I23=3),\"      \"&I16,\"\")","v":""},null,null,"Tirage / Menu",55,{"$f":"IF(I5=0,J6,I5)","v":0}]
[null,null,null,null,{"$f":"IF(I8=\"oui\",\"\",IF(OR(I23=1,I23=4),\"8\",\"?\"))","v":"8"},null,5,"Menu A /a+b",0,null,0,"tirage abcd =1"]
[null,null,null,{"$f":"IF(I11=FALSE,\"\",VLOOKUP(I4,Feuil2!A20:C92,2))","v":""},null,null,6,null,0,null,0,"Nouveau tirage"]
[null,null,null,{"$f":"IF(J11=FALSE,\"\",VLOOKUP(I4,Feuil2!A20:C92,3))","v":""},null,null,7,"nb fleurs / série",52,1]
[null,null,null,{"$f":"IF(J10=FALSE,\"\",VLOOKUP(I4,Feuil2!A20:D92,4))","v":""},null,null,8,"Bonne réponse ",{"$f":"IF(I23=4,K30,IF(I4=J4-1,\"oui\",\"non\"))","v":"non"},{"$f":"IF(J7=1,0,6)","v":0},{"$f":"IF(I5>0,IF(I6>0,\"oui\",\"non\"),\"non\")","v":"non"}]
[null,null," ",null,null,null,9,"Voir en défilant",false,false,{"$f":"IF(OR(I8=\"oui\",M30=1),TRUE,FALSE)","v":false}]
[null,null,null,null,null,null,10,"Voir stat / latin",false,false]
[null,null,null,null,null,null,11,"solution / famille",false,false]
["© Yvan Péguiron - Infodidac.ch - 2020",null,null,null,"* Le système attend une réponse juste. Pour passer, utiliser la gomme ou voir la solution !",null,12,"nb rep",0,{"$f":"IF(INT((I12-I16)/5)<0,0,INT((I12-I16)/5))","v":0}]
[null,null,null,null,null,null,13,"nb juste",0,{"$f":"I13-I15","v":0}]
[null,null,null,null,null,null,14,"nb gomme",0]
["Liste des tirages de cette série :",null,null,null,null,null,15,"nb voir",0,null,null,null,null,"Lettres "]
[0,1,{"$f":"IF(A16=0,\"\",O16&VLOOKUP(A16,Data,2))","v":""},null,null,null,16,"nb tir",0,100,null,null,null,null,{"$f":"IF(N16=\"\",\"\",N16&\" - \")","v":""}]
[0,2,"",null,null,null,17,"évaluation",null,{"$f":"IF(I16=0,0,ROUND(J16*(I13-J12)/(I16),0))","v":0},null,null,null,null,{"$f":"IF(N17=\"\",\"\",N17&\" - \")","v":""}]
[0,3,"",null,null,null,18,"zoom",100,{"$f":"J17&\"/100\"","v":"0/100"},null,null,null,null,""]
[0,4,"",null,null,null,19,"Information",1,null,null,null,null,null,""]
[0,5,"",null,null,null,20,null,null,null,null,null,null,null,""]
[0,6,"",null,null,null,21,null,null,null,null,null,null,null,""]
[0,7,"",null,null,null,22,"liste",false,null,null,null,null,null,""]
[0,8,"",null,null,null,23,"réponse /1 ou 4",4,{"$f":"IF(OR(I23=1,I23=4),1,0)","v":1},null,null,null,null,""]
[0,9,"",null,null,null,24,"voir liste",false,null,null,null,null,null,""]
[0,10,"",null,null,null,25,"Tirage abcd",1,6,null,null,null,null,""]
[0,11,"",null,null,null,26,null,2,15,null,"selection",{"$f":"INDEX(I31:J35,M28,2)","v":{"$error":"#VALUE!"}},null,""]
[0,12,"",null,null,null,27,null,3,12,null,"rep menu",0,null,""]
[0,13,"",null,null,null,28,null,4,47,null,"rep ABCD",{"$f":"M27-1","v":-1},null,""]
[0,14,"",null,null,null,29,null,5,45,null,"v ABCD",{"$f":"MATCH(5,M31:M35,0)","v":1},null,""]
[0,15,"",null,null,null,30,null,"rang",null,{"$f":"IF(M30=1,\"oui\",\"non\")","v":"non"},null,{"$f":"IF(M28=M29,1,0)","v":0},null,""]
[0,16,"",null,null,null,31,"A",{"$f":"RANK(J25,$J$25:$J$29)","v":5},{"$f":"VLOOKUP(I31,$I$25:$J$29,2)","v":45},1,{"$f":"IF($I$4>52,\"\",\"A   \"&VLOOKUP(J31,Feuil2!$A$20:$B$72,2))","v":""},{"$f":"I31","v":5},null,""]
[0,17,"",null,null,null,32,"B",{"$f":"RANK(J26,$J$25:$J$29)","v":3},{"$f":"VLOOKUP(I32,$I$25:$J$29,2)","v":12},2,{"$f":"IF($I$4>52,\"\",\"B   \"&VLOOKUP(J32,Feuil2!$A$20:$B$72,2))","v":""},{"$f":"I32","v":3},null,""]
[0,18,"",null,null,null,33,"C",4,47,3,{"$f":"IF($I$4>52,\"\",\"C   \"&VLOOKUP(J33,Feuil2!$A$20:$B$72,2))","v":""},4,null,""]
[0,19,"",null,null,null,34,"D",1,6,4,{"$f":"IF($I$4>52,\"\",\"D   \"&VLOOKUP(J34,Feuil2!$A$20:$B$72,2))","v":""},1,null,""]
[0,20,"",null,null,null,35,"E",2,15,5,{"$f":"IF($I$4>52,\"\",\"E   \"&VLOOKUP(J35,Feuil2!$A$20:$B$72,2))","v":""},2,null,""]
[0,21,"",null,null,null,null,null,null,null,"lettre juste",{"$f":"VLOOKUP(M29+30,G31:H34,2)","v":"A"},null,null,""]
[0,22,"",null,null,null,null,null,null,null,null,null,null,null,""]
[0,23,"",null,null,null,null,null,null,null,null,null,null,null,""]
[0,24,"",null,null,null,null,null,null,null,null,null,null,null,""]
[0,25,"",null,null,null,null,null,null,null,null,null,null,null,""]
[0,26,"",null,null,null,null,null,null,null,null,null,null,null,""]
[0,27,"",null,null,null,null,null,null,null,null,null,null,null,""]
[0,28,"",null,null,null,null,null,null,null,null,null,null,null,""]
[0,29,"",null,null,null,null,null,null,null,null,null,null,null,""]
[0,30,"",null,null,null,null,null,null,null,null,null,null,null,""]
[0,31,"",null,null,null,null,null,null,null,null,null,null,null,""]
[0,32,"",null,null,null,null,null,null,null,null,null,null,null,""]
[0,33,{"$f":"IF(A48=0,\"\",O48&VLOOKUP(A48,Data,2))","v":""},null,null,null,null,null,null,null,null,null,null,null,""]
[0,34,"",null,null,null,null,null,null,null,null,null,null,null,""]
[0,35,"",null,null,null,null,null,null,null,null,null,null,null,""]
[0,36,"",null,null,null,null,null,null,null,null,null,null,null,""]
[0,37,"",null,null,null,null,null,null,null,null,null,null,null,""]
[0,38,"",null,null,null,null,null,null,null,null,null,null,null,""]
[0,39,"",null,null,null,null,null,null,null,null,null,null,null,""]
[0,40,"",null,null,null,null,null,null,null,null,null,null,null,""]
[0,41,"",null,null,null,null,null,null,null,null,null,null,null,""]
[0,42,"",null,null,null,null,null,null,null,null,null,null,null,""]
[0,43,"",null,null,null,null,null,null,null,null,null,null,null,""]
[0,44,"",null,null,null,null,null,null,null,null,null,null,null,""]
[0,45,"",null,null,null,null,null,null,null,null,null,null,null,""]
[0,46,"",null,null,null,null,null,null,null,null,null,null,null,""]
[0,47,"",null,null,null,null,null,null,null,null,null,null,null,""]
[0,48,"",null,null,null,null,null,null,null,null,null,null,null,""]
[0,49,"",null,null,null,null,null,null,null,null,null,null,null,""]
[0,50,"",null,null,null,null,null,null,null,null,null,null,null,""]
[0,51,"",null,null,null,null,null,null,null,null,null,null,null,""]
[0,52,"",null,null,null,null,null,null,null,null,null,null,null,""]
[0,53,{"$f":"IF(A68=0,\"\",O68&\" - \"&VLOOKUP(A68,Data,2))","v":""},null,null,null,null,null,null,null,null,null,null,null,""]
[0,54,"",null,null,null,null,null,null,null,null,null,null,null,""]
[0,55,""]
[0,56,""]
[0,57,""]
[0,58,""]
[0,59,""]
[0,60,{"$f":"IF(A75=0,\"\",VLOOKUP(A75,Data,2))","v":""}]
[0,61,""]
[0,62,""]
[0,63,""]
[0,64,""]
[0,65,{"$f":"IF(A80=0,\"\",VLOOKUP(A80,Data,2))","v":""}]
[0,66,""]
[0,67,""]
[0,68,""]
[0,69,""]
[0,70,""]
[0,71,""]
[0,72,""]
[0,73,""]
[0,74,""]
[0,75,""]
[0,76,{"$f":"IF(A91=0,\"\",VLOOKUP(A91,Data,2))","v":""}]
[null,null,{"$f":"IF(B92=0,\"\",VLOOKUP(B92,Data,2))","v":""}]
[null,null,{"$f":"IF(B93=0,\"\",VLOOKUP(B93,Data,2))","v":""}]

{"sheet":"Feuil2","index":1,"n_rows":99,"n_cols":90,"rows_kept":99,"cut":false,"hidden":true,"merged":[]}
[null,1,2,3,4,5,6,7,8,9,10,11,12,13,14,15,16,17,18,19,20,21,22,23,24,25,26,27,28,29,30,31,32,33,34,35,36,37,38,39,40,41,42,43,44,45,46,47,48,49,50,51,52,53,54,55,56,57,58,59,60,61,62,63,64,65,66,67,68,null,null,null,null,null,null,null,78,79,80,81,82,83,84,85,86,87,87,88,89,90]
[null,null,null,null,null,null,null,null,null,null,null,null,null,null,null,null,null,null,null,null,null,null,null,null,null,null,null,null,null,null,null,null,null,null,null,null,null,null,null,null,null,null,null,null,null,null,null,null,null,null,null,null,null,null,null,"Bienvenue dans le QUIZ horticole II.      ","                                                                  Toutes les fleurs ont été vues…        Bravo !"]
[]
["nom","abélia","agapanthe","albizia","althéa (hibiscus ou rose de Chine)","amarante queue-de-renard","anthémis","astrance (grande)","aubépine rose","bégonia","bidens polylepis","bougainvillier","bourrache","bruyère carnée","bugle rampante","camélia","cléome","colchique","corbeille d'argent","cosmos","cyclamen","cytise ou faux ébénier","épiaire officinale","forsythia","gaura","géranium - pélargonium","gesse printanière","giroflée  orange bedder","gloire des neiges","glycine ","gueule-de-loup - muflier","hémérocalle","immortelle commune","jasmin étoilé - faux jasmin","lanterne japonaise","laurier-tin","lavande","lin des Alpes","millepertuis","népéta","nombril de Vénus","orpin d'automne","oxalis corniculé","pervenches","pétunias","pied d'alouette ou dauphinelle","plumbago - dentelaire","pois de senteur","renoncule-rose","sauge des près","scabieuse des champs - knautie","suzanne-au-yeux-noirs","véronique petit-chêne"," "]
["famille","caprifoliaceae","liliaceae","caprifoliaceae","malvaceae","chenopodiaceae","asteraceae","astrantia major","rosaceae","begoniaceae","asteraceae ","nyctaginaceae","boraginaceae","ericaceae","lamiaceae","theaceae","capparaceae","liliaceae","brassicaceae","asteraceae","primulceae","faboideae","lamiaceae","oleaceae","onagraceae","geraniaceae","fabaceae","brassicaceae","liliaceae","fabaceae","scrophulariaceae","liliaceae","asteraceae","apocynaceae","solanaceae","adoxaceae","lamiaceae","linaceae","clusiaceae","lamiaceae","crassulaceae","crassulaceae","oxalidaceae","apocynaceae","solanaceae","ranunculaceae","plumbaginaceae","fabaceae","ranuncculaceae","lamiaceae","dipsacaceae","acanthaceae","scrophulariaceae"," "]
["latin","abelia grandiflora","agapanthus","albizia lebbeck","hibiscus syriacus","amaranthus caudatus","anthemis cretica","apiaceae","crataegus Paul Scarlet","begonia","bidens polylepis",null,"borago officinalis","erica carnea","ajuga reptans","camellia sasanqua","cleome spinosa","colchicum autumnale","iberis sempervirens","cosmos bipinnatus","cyclamen hederifolium","laburnum vulgare","stachys officinalis","forsythia ×intermedia","gaura lindheimeri","pelargonium capitatum","lathyrus vernus","erysimum cheiri","chionodaxa luciliae","wisteria","antirrhinum majus","hemerocallis","helichrysum stoechas","trachelospermum jasminoides","physalis alkekengi","viburnum tinus","lavandula angustifolia","linum alpinum","hypericum perforatum","nepeta sibirica","Omphalodes  Starry Eyes","sedum spectabile","oxalis corniculata","vinca minor","petunia","delphinium ajacis","plumbago auriculata","lathyrus odoratus","rananculus asiaticus","salvia pratensis","knautia arvensis","thunbergia alata","veronica chamaedrys"," "]
["descri.","arbustes à fleurs 1 à 4 m","plante herbacée 0.75 à 1 m","arbustes à fleurs 1 à 4 m","arbuste 5 m","plante annuelle 0.5 à 1 m",null,"30 à 90 cm","arbuste. 2à 4 m",null,null,"arbuste épineux",null,null,null,null,null,null,null,null,null,null,null,null,null,null,null,null,null,null,null,null,null,null,null,null,null,null,null,null,null,null,null,null,null,null,null,null,null,null,null,null,null," "]
[null,null,null,null,null,null,null,null,null,null,null,null,null,null,null,null,null,null,null,null,null,null,null,null,null,null,null,null,null,null,null,null,null,null,null,null,null,null,null,null,null,null,null,null,null,null,null,null,null,null,null,null,null," ",null,null,"                                                                                                                                                                                         Cliquez sur \"Départ\" pour une nouvelle partie, sinon au revoir et à bientôt !"]
[null,null,null,null,null,null,null,null,null,null,null,null,null,null,null,null,null,null,null,null,null,null,null,null,null,null,null,null,null,null,null,null,null,null,null,null,null,null,null,null,null,null,null,null,null,null,null,null,null,null,null,null,null," "]
[null,null,null,null,null,null,null,null,null,null,null,null,null,null,null,null,null,null,null,null,null,null,null,null,null,null,null,null,null,null,null,null,null,null,null,null,null,null,null,null,null,null,null,null,null,null,null,null,null,null,null,null,null," "]
[null,null,null,null,null,null,null,null,null,null,null,null,null,null,null,null,null,null,null,null,null,null,null,null,null,null,null,null,null,null,null,null,null,null,null,null,null,null,null,null,null,null,null,null,null,null,null,null,null,null,null,null,null," "]
[null,null,null,null,null,null,null,null,null,null,null,null,null,null,null,null,null,null,null,null,null,null,null,null,null,null,null,null,null,null,null,null,null,null,null,null,null,null,null,null,null,null,null,null,null,null,null,null,null,null,null,null,null," "]
[null,null,null,null,null,null,null,null,null,null,null,null,null,null,null,null,null,null,null,null,null,null,null,null,null,null,null,null,null,null,null,null,null,null,null,null,null,null,null,null,null,null,null,null,null,null,null,null,null,null,null,null,null," "]
[]
[]
[]
[]
[]
[0,"   ","   ","   ","   ","   "]
[1,{"$f":"TRANSPOSE(B4:CA6)","v":"abélia"},"caprifoliaceae","abelia grandiflora",{"$f":"\"A       \"","v":"A       "},{"$f":"E20&B20","v":"A       abélia"}]
[2,"agapanthe","liliaceae","agapanthus",{"$f":"\"         \"","v":"         "},{"$f":"E21&B21","v":"         agapanthe"}]
[3,"albizia","caprifoliaceae","albizia lebbeck",{"$f":"\"         \"","v":"         "},"         albizia"]
[4,"althéa (hibiscus ou rose de Chine)","malvaceae","hibiscus syriacus","         ","         althéa (hibiscus ou rose de Chine)"]
[5,"amarante queue-de-renard","chenopodiaceae","amaranthus caudatus","         ","         amarante queue-de-renard"]
[6,"anthémis","asteraceae","anthemis cretica","         ","         anthémis"]
[7,"astrance (grande)","astrantia major","apiaceae",{"$f":"\"         \"","v":"         "},"         astrance (grande)"]
[8,"aubépine rose","rosaceae","crataegus Paul Scarlet",{"$f":"\"         \"","v":"         "},"         aubépine rose"]
[9,"bégonia","begoniaceae","begonia",{"$f":"\"B       \"","v":"B       "},"B       bégonia"]
[10,"bidens polylepis","asteraceae ","bidens polylepis","         ","         bidens polylepis"]
[11,"bougainvillier","nyctaginaceae",0,"         ","         bougainvillier"]
[12,"bourrache","boraginaceae","borago officinalis","         ","         bourrache"]
[13,"bruyère carnée","ericaceae","erica carnea","         ","         bruyère carnée"]
[14,"bugle rampante","lamiaceae","ajuga reptans","         ","         bugle rampante"]
[15,"camélia","theaceae","camellia sasanqua",{"$f":"\"C       \"","v":"C       "},"C       camélia"]
[16,"cléome","capparaceae","cleome spinosa","         ","         cléome"]
[17,"colchique","liliaceae","colchicum autumnale","         ","         colchique"]
[18,"corbeille d'argent","brassicaceae","iberis sempervirens","         ","         corbeille d'argent"]
[19,"cosmos","asteraceae","cosmos bipinnatus","         ","         cosmos"]
[20,"cyclamen","primulceae","cyclamen hederifolium","         ","         cyclamen"]
[21,"cytise ou faux ébénier","faboideae","laburnum vulgare","         ","         cytise ou faux ébénier"]
[22,"épiaire officinale","lamiaceae","stachys officinalis",{"$f":"\"E       \"","v":"E       "},"E       épiaire officinale"]
[23,"forsythia","oleaceae","forsythia ×intermedia",{"$f":"\"F       \"","v":"F       "},"F       forsythia"]
[24,"gaura","onagraceae","gaura lindheimeri",{"$f":"\"G      \"","v":"G      "},"G      gaura"]
[25,"géranium - pélargonium","geraniaceae","pelargonium capitatum","         ","         géranium - pélargonium"]
[26,"gesse printanière","fabaceae","lathyrus vernus","         ","         gesse printanière"]
[27,"giroflée  orange bedder","brassicaceae","erysimum cheiri","         ","         giroflée  orange bedder"]
[28,"gloire des neiges","liliaceae","chionodaxa luciliae","         ","         gloire des neiges"]
[29,"glycine ","fabaceae","wisteria","         ","         glycine "]
[30,"gueule-de-loup - muflier","scrophulariaceae","antirrhinum majus","         ","         gueule-de-loup - muflier"]
[31,"hémérocalle","liliaceae","hemerocallis",{"$f":"\"H       \"","v":"H       "},"H       hémérocalle"]
[32,"immortelle commune","asteraceae","helichrysum stoechas",{"$f":"\"I        \"","v":"I        "},"I        immortelle commune"]
[33,"jasmin étoilé - faux jasmin","apocynaceae","trachelospermum jasminoides",{"$f":"\"J        \"","v":"J        "},"J        jasmin étoilé - faux jasmin"]
[34,"lanterne japonaise","solanaceae","physalis alkekengi",{"$f":"\"L       \"","v":"L       "},"L       lanterne japonaise"]
[35,"laurier-tin","adoxaceae","viburnum tinus",{"$f":"\"         \"","v":"         "},"         laurier-tin"]
[36,"lavande","lamiaceae","lavandula angustifolia","         ","         lavande"]
[37,"lin des Alpes","linaceae","linum alpinum","         ","         lin des Alpes"]
[38,"millepertuis","clusiaceae","hypericum perforatum",{"$f":"\"M     \"","v":"M     "},"M     millepertuis"]
[39,"népéta","lamiaceae","nepeta sibirica",{"$f":"\"N      \"","v":"N      "},"N      népéta"]
[40,"nombril de Vénus","crassulaceae","Omphalodes  Starry Eyes","         ","         nombril de Vénus"]
[41,"orpin d'automne","crassulaceae","sedum spectabile",{"$f":"\"O      \"","v":"O      "},"O      orpin d'automne"]
[42,"oxalis corniculé","oxalidaceae","oxalis corniculata","         ","         oxalis corniculé"]
[43,"pervenches","apocynaceae","vinca minor",{"$f":"\"P       \"","v":"P       "},"P       pervenches"]
[44,"pétunias","solanaceae","petunia","         ","         pétunias"]
[45,"pied d'alouette ou dauphinelle","ranunculaceae","delphinium ajacis","         ","         pied d'alouette ou dauphinelle"]
[46,"plumbago - dentelaire","plumbaginaceae","plumbago auriculata","         ","         plumbago - dentelaire"]
[47,"pois de senteur","fabaceae","lathyrus odoratus","         ","         pois de senteur"]
[48,"renoncule-rose","ranuncculaceae","rananculus asiaticus",{"$f":"\"R       \"","v":"R       "},"R       renoncule-rose"]
[49,"sauge des près","lamiaceae","salvia pratensis",{"$f":"\"S       \"","v":"S       "},"S       sauge des près"]
[50,"scabieuse des champs - knautie","dipsacaceae","knautia arvensis","         ","         scabieuse des champs - knautie"]
[51,"suzanne-au-yeux-noirs","acanthaceae","thunbergia alata","         ","         suzanne-au-yeux-noirs"]
[52,"véronique petit-chêne","scrophulariaceae","veronica chamaedrys",{"$f":"\"V       \"","v":"V       "},"V       véronique petit-chêne"]
[53," "," "," "]
[54,0,0,0,null,{"$f":"E73&B73","v":"0"}]
[55,0,0,0,null,"0"]
[56,0,0,0,null,"0"]
[57,0,0,0,null,"0"]
[58,0,0,0,null,"0"]
[59,0,0,0,null,"0"]
[60,0,0,0,null,"0"]
[61,0,0,0,null,"0"]
[62,0,0,0,null,"0"]
[63,0,0,0,null,"0"]
[64,0,0,0,null,"0"]
[65,0,0,0,null,"0"]
[66,0,0,0,null,{"$f":"E85&B85","v":"0"}]
[67,0,0,0,null,"0"]
[68,0,0,0,null,"0"]
[69,0,0,0,null,"0"]
[70,0,0,0,null,"0"]
[71,0,0,0,null,"0"]
[72,0,0,0,null,"0"]
[73,0,0,0,null,"0"]
[74,0,0,0,null,"0"]
[75,0,0,0,null,"0"]
[76,0,0,0,null,"0"]
[77,0,0,0,null,"0"]
[78,0,0,0,null,"0"]
[79,{"$error":"#N/A"},{"$error":"#N/A"},{"$error":"#N/A"},null,{"$error":"#N/A"}]
[80,{"$error":"#N/A"},{"$error":"#N/A"},{"$error":"#N/A"}]